[Event "Titled Tuesday Blitz November 07 Early 2023"]
[White "Barbot, Pierre"]
[Black "ChessDojo"]
[WhiteFideId "663727"]
[WhiteElo "2295"]
[BlackElo "2126"]
[Result "0-1"]
[Round "7"]
[TimeControl "180+1"]
[Date "2023.11.07"]
[WhiteClock "0:00:00"]
[BlackClock "0:01:12"]
[Board "181"]

1. e4 {[%clk 0:03:00]}  e5 {[%clk 0:02:59]} 2. Nf3 {[%clk 0:03:00]}  Nc6 {[%clk 0:02:59]} 3. Bb5 {[%clk 0:02:56]}  Nf6 {[%clk 0:02:59]} 4. O-O {[%clk 0:02:51]}  Nxe4 {[%clk 0:02:58]} 5. d4 {[%clk 0:02:35]}  Nd6 {[%clk 0:02:51]} 6. Bxc6 {[%clk 0:02:36]}  dxc6 {[%clk 0:02:51]} 7. dxe5 {[%clk 0:02:36]}  Nf5 {[%clk 0:02:52]} 8. Qxd8+ {[%clk 0:02:34]}  Kxd8 {[%clk 0:02:52]} 9. Nc3 {[%clk 0:02:22]}  Ke8 {[%clk 0:02:52]} 10. Bf4 {[%clk 0:02:05]}  Be6 {[%clk 0:02:47]} 11. Rad1 {[%clk 0:02:03]}  h5 {[%clk 0:02:39]} 12. h3 {[%clk 0:01:59]}  Be7 {[%clk 0:02:39]} 13. Ne4 {[%clk 0:01:39]}  Rd8 {[%clk 0:02:29]} 14. b3 {[%clk 0:01:32]}  b6 {[%clk 0:02:26]} 15. c3 {[%clk 0:01:13]}  a6 {[%clk 0:02:22]} 16. Neg5 {[%clk 0:01:02]}  Rh6 {[%clk 0:02:15]} 17. Nxe6 {[%clk 0:01:01]}  Rxe6 {[%clk 0:02:14]} 18. Rfe1 {[%clk 0:01:00]}  c5 {[%clk 0:02:06]} 19. Rxd8+ {[%clk 0:00:54]}  Kxd8 {[%clk 0:02:04]} 20. Ng5 {[%clk 0:00:54]}  Bxg5 {[%clk 0:01:59]} 21. Bxg5+ {[%clk 0:00:54]}  Ke8 {[%clk 0:01:59]} 22. Rd1 {[%clk 0:00:46]}  Ne7 {[%clk 0:01:59]} 23. f4 {[%clk 0:00:36]}  b5 {[%clk 0:01:50]} 24. Bh4 {[%clk 0:00:28]}  Nc6 {[%clk 0:01:48]} 25. Kf2 {[%clk 0:00:20]}  a5 {[%clk 0:01:49]} 26. g4 {[%clk 0:00:20]}  hxg4 {[%clk 0:01:48]} 27. hxg4 {[%clk 0:00:21]}  b4 {[%clk 0:01:43]} 28. Rd5 {[%clk 0:00:14]}  bxc3 {[%clk 0:01:42]} 29. Rxc5 {[%clk 0:00:15]}  Nb4 {[%clk 0:01:35]} 30. Rxc3 {[%clk 0:00:14]}  Nxa2 {[%clk 0:01:34]} 31. Rxc7 {[%clk 0:00:14]}  f6 {[%clk 0:01:35]} 32. exf6 {[%clk 0:00:13]}  gxf6 {[%clk 0:01:35]} 33. Ra7 {[%clk 0:00:12]}  Nc1 {[%clk 0:01:32]} 34. Rxa5 {[%clk 0:00:09]}  Nxb3 {[%clk 0:01:32]} 35. Rf5 {[%clk 0:00:08]}  Nd4 {[%clk 0:01:27]} 36. Rxf6 {[%clk 0:00:07]}  Re2+ {[%clk 0:01:26]} 37. Kf1 {[%clk 0:00:03]}  Rh2 {[%clk 0:01:25]} 38. Bg5 {[%clk 0:00:03]}  Nf3 {[%clk 0:01:25]} 39. Rg6 {[%clk 0:00:02]}  Nd2+ {[%clk 0:01:23]} 40. Ke1 {[%clk 0:00:01]}  Nf3+ {[%clk 0:01:23]} 41. Kd1 {[%clk 0:00:02]}  Rd2+ {[%clk 0:01:24]} 42. Kc1 {[%clk 0:00:02]}  Rg2 {[%clk 0:01:24]} 43. Bh6 {[%clk 0:00:01]}  Kf7 {[%clk 0:01:24]} 44. Rg7+ {[%clk 0:00:02]}  Ke6 {[%clk 0:01:23]} 45. f5+ {[%clk 0:00:02]}  Ke5 {[%clk 0:01:22]} 46. Re7+ {[%clk 0:00:02]}  Kf6 {[%clk 0:01:21]} 47. Re6+ {[%clk 0:00:02]}  Kf7 {[%clk 0:01:19]} 48. Rg6 {[%clk 0:00:02]}  Nh4 {[%clk 0:01:18]} 49. Rg7+ {[%clk 0:00:02]}  Kf6 {[%clk 0:01:17]} 50. Rg8 {[%clk 0:00:00]}  Rg1+ {[%clk 0:01:12]} 0-1


[Site "https://www.chess.com"]

[Event "Titled Tuesday Blitz November 07 Early 2023"]
[White "Osiecki, Stanislaw"]
[Black "Martin, Lewis"]
[WhiteFideId "1102990"]
[BlackFideId "410551"]
[WhiteElo "2108"]
[BlackElo "2278"]
[Result "0-1"]
[Round "7"]
[TimeControl "180+1"]
[Date "2023.11.07"]
[WhiteClock "0:01:31"]
[BlackClock "0:01:42"]
[Board "183"]

1. e4 {[%clk 0:02:49]}  c6 {[%clk 0:02:59]} 2. d4 {[%clk 0:02:49]}  d5 {[%clk 0:02:58]} 3. e5 {[%clk 0:02:49]}  Bf5 {[%clk 0:02:58]} 4. Bd3 {[%clk 0:02:49]}  Bxd3 {[%clk 0:02:54]} 5. Qxd3 {[%clk 0:02:49]}  e6 {[%clk 0:02:55]} 6. c3 {[%clk 0:02:49]}  c5 {[%clk 0:02:54]} 7. Ne2 {[%clk 0:02:50]}  Nc6 {[%clk 0:02:54]} 8. O-O {[%clk 0:02:50]}  Nge7 {[%clk 0:02:51]} 9. Rd1 {[%clk 0:02:50]}  Ng6 {[%clk 0:02:39]} 10. g3 {[%clk 0:02:49]}  Be7 {[%clk 0:02:39]} 11. h4 {[%clk 0:02:49]}  h5 {[%clk 0:02:28]} 12. Nf4 {[%clk 0:02:45]}  Nxf4 {[%clk 0:02:23]} 13. Bxf4 {[%clk 0:02:45]}  g5 {[%clk 0:02:21]} 14. Bxg5 {[%clk 0:02:42]}  Bxg5 {[%clk 0:02:21]} 15. hxg5 {[%clk 0:02:43]}  Qxg5 {[%clk 0:02:22]} 16. Qe3 {[%clk 0:02:40]}  Qg4 {[%clk 0:02:19]} 17. Nd2 {[%clk 0:02:38]}  cxd4 {[%clk 0:02:19]} 18. cxd4 {[%clk 0:02:37]}  Nxd4 {[%clk 0:02:13]} 19. Kg2 {[%clk 0:02:25]}  Nc2 {[%clk 0:02:10]} 20. Qd3 {[%clk 0:02:15]}  Nxa1 {[%clk 0:02:08]} 21. Rxa1 {[%clk 0:02:11]}  h4 {[%clk 0:01:54]} 22. Qb5+ {[%clk 0:02:07]}  Kf8 {[%clk 0:01:54]} 23. Qxb7 {[%clk 0:01:56]}  Kg7 {[%clk 0:01:54]} 24. Rh1 {[%clk 0:01:51]}  hxg3 {[%clk 0:01:50]} 25. Rxh8 {[%clk 0:01:38]}  gxf2+ {[%clk 0:01:48]} 26. Kxf2 {[%clk 0:01:38]}  Rxh8 {[%clk 0:01:48]} 27. Nf3 {[%clk 0:01:37]}  Rh3 {[%clk 0:01:45]} 28. Qb3 {[%clk 0:01:34]}  Qg3+ {[%clk 0:01:43]} 29. Ke2 {[%clk 0:01:31]}  Qg2+ {[%clk 0:01:42]} 0-1


[Site "https://www.chess.com"]

[Event "Titled Tuesday Blitz November 07 Early 2023"]
[White "Winkels, Marcel"]
[Black "LionKing2367890"]
[WhiteFideId "1003887"]
[WhiteElo "2069"]
[BlackElo "2244"]
[Result "0-1"]
[Round "7"]
[TimeControl "180+1"]
[Date "2023.11.07"]
[WhiteClock "0:01:35"]
[BlackClock "0:01:43"]
[Board "185"]

1. e4 {[%clk 0:03:00]}  e5 {[%clk 0:02:58]} 2. Nf3 {[%clk 0:03:00]}  Nc6 {[%clk 0:02:59]} 3. Bb5 {[%clk 0:02:59]}  a6 {[%clk 0:02:59]} 4. Ba4 {[%clk 0:03:00]}  Nf6 {[%clk 0:02:56]} 5. O-O {[%clk 0:02:59]}  Be7 {[%clk 0:02:55]} 6. Re1 {[%clk 0:02:59]}  b5 {[%clk 0:02:55]} 7. Bb3 {[%clk 0:02:58]}  d6 {[%clk 0:02:55]} 8. a4 {[%clk 0:02:58]}  b4 {[%clk 0:02:52]} 9. d3 {[%clk 0:02:51]}  O-O {[%clk 0:02:51]} 10. Bg5 {[%clk 0:02:49]}  Be6 {[%clk 0:02:51]} 11. Bxf6 {[%clk 0:02:36]}  Bxf6 {[%clk 0:02:51]} 12. Bd5 {[%clk 0:02:35]}  Bxd5 {[%clk 0:02:46]} 13. exd5 {[%clk 0:02:35]}  Ne7 {[%clk 0:02:47]} 14. c4 {[%clk 0:02:35]}  bxc3 {[%clk 0:02:45]} 15. Nxc3 {[%clk 0:02:34]}  Rb8 {[%clk 0:02:38]} 16. Qc2 {[%clk 0:02:29]}  Rb4 {[%clk 0:02:37]} 17. Rec1 {[%clk 0:02:22]}  Qb8 {[%clk 0:02:36]} 18. Ne4 {[%clk 0:02:19]}  Nxd5 {[%clk 0:02:28]} 19. Nxf6+ {[%clk 0:02:12]}  Nxf6 {[%clk 0:02:28]} 20. Qxc7 {[%clk 0:02:11]}  Rxb2 {[%clk 0:02:24]} 21. Qxb8 {[%clk 0:01:57]}  Rfxb8 {[%clk 0:02:24]} 22. Rc6 {[%clk 0:01:58]}  R2b6 {[%clk 0:02:21]} 23. Rxb6 {[%clk 0:01:52]}  Rxb6 {[%clk 0:02:21]} 24. a5 {[%clk 0:01:47]}  Rc6 {[%clk 0:02:19]} 25. Rb1 {[%clk 0:01:44]}  h6 {[%clk 0:02:09]} 26. Kf1 {[%clk 0:01:44]}  Nd5 {[%clk 0:02:08]} 27. Nd2 {[%clk 0:01:36]}  Nf4 {[%clk 0:01:44]} 28. Rb6 {[%clk 0:01:35]}  Rc1# {[%clk 0:01:43]} 0-1


[Site "https://www.chess.com"]

[Event "Titled Tuesday Blitz November 07 Early 2023"]
[White "Chxss_Khxsbu"]
[Black "Sarkar, Justin"]
[BlackFideId "2010011"]
[WhiteElo "1862"]
[BlackElo "2220"]
[Result "0-1"]
[Round "7"]
[TimeControl "180+1"]
[Date "2023.11.07"]
[WhiteClock "0:00:15"]
[BlackClock "0:00:10"]
[Board "188"]

1. e4 {[%clk 0:03:00]}  c5 {[%clk 0:02:42]} 2. Nf3 {[%clk 0:02:57]}  Nc6 {[%clk 0:02:41]} 3. d4 {[%clk 0:02:57]}  cxd4 {[%clk 0:02:41]} 4. Nxd4 {[%clk 0:02:56]}  e6 {[%clk 0:02:38]} 5. Nxc6 {[%clk 0:02:52]}  bxc6 {[%clk 0:02:37]} 6. Bd3 {[%clk 0:02:52]}  Nf6 {[%clk 0:02:31]} 7. O-O {[%clk 0:02:48]}  d5 {[%clk 0:02:31]} 8. Nc3 {[%clk 0:02:46]}  g6 {[%clk 0:02:06]} 9. Qe2 {[%clk 0:02:40]}  Bg7 {[%clk 0:02:03]} 10. f4 {[%clk 0:02:16]}  O-O {[%clk 0:01:58]} 11. Kh1 {[%clk 0:02:05]}  c5 {[%clk 0:01:44]} 12. e5 {[%clk 0:01:39]}  Nd7 {[%clk 0:01:40]} 13. b3 {[%clk 0:01:32]}  f6 {[%clk 0:01:18]} 14. exf6 {[%clk 0:01:16]}  Qxf6 {[%clk 0:01:11]} 15. Bb2 {[%clk 0:01:14]}  Qf7 {[%clk 0:01:10]} 16. Rae1 {[%clk 0:01:11]}  Nb6 {[%clk 0:01:03]} 17. Na4 {[%clk 0:01:03]}  Nxa4 {[%clk 0:00:57]} 18. Bxg7 {[%clk 0:00:58]}  Qxg7 {[%clk 0:00:57]} 19. bxa4 {[%clk 0:00:58]}  c4 {[%clk 0:00:57]} 20. Bxc4 {[%clk 0:00:56]}  dxc4 {[%clk 0:00:57]} 21. Qxc4 {[%clk 0:00:56]}  Bd7 {[%clk 0:00:50]} 22. Rd1 {[%clk 0:00:51]}  Rac8 {[%clk 0:00:45]} 23. Qb4 {[%clk 0:00:49]}  Rxc2 {[%clk 0:00:36]} 24. Qb7 {[%clk 0:00:45]}  Bc6 {[%clk 0:00:33]} 25. Qb3 {[%clk 0:00:41]}  Bxg2+ {[%clk 0:00:25]} 26. Kg1 {[%clk 0:00:40]}  Qc7 {[%clk 0:00:19]} 27. Qxe6+ {[%clk 0:00:38]}  Kh8 {[%clk 0:00:16]} 28. Rf2 {[%clk 0:00:28]}  Qc5 {[%clk 0:00:14]} 29. Qe1 {[%clk 0:00:20]}  Rxf2 {[%clk 0:00:13]} 30. Qxf2 {[%clk 0:00:20]}  Qxf2+ {[%clk 0:00:12]} 31. Kxf2 {[%clk 0:00:21]}  Bc6 {[%clk 0:00:12]} 32. Ke3 {[%clk 0:00:21]}  Bxa4 {[%clk 0:00:11]} 33. Rd4 {[%clk 0:00:20]}  Bb5 {[%clk 0:00:10]} 34. Rd7 {[%clk 0:00:20]}  Bxd7 {[%clk 0:00:10]} 35. Kd4 {[%clk 0:00:20]}  a5 {[%clk 0:00:10]} 36. Ke5 {[%clk 0:00:20]}  Re8+ {[%clk 0:00:10]} 37. Kd6 {[%clk 0:00:15]}  Be6 {[%clk 0:00:10]} 0-1


[Site "https://www.chess.com"]

[Event "Titled Tuesday Blitz November 07 Early 2023"]
[White "Cappelletto, Joshuaede"]
[Black "Kiseljova, Marya"]
[WhiteFideId "2824383"]
[BlackFideId "4155009"]
[WhiteElo "2626"]
[BlackElo "2206"]
[Result "1-0"]
[Round "7"]
[TimeControl "180+1"]
[Date "2023.11.07"]
[WhiteClock "0:00:18"]
[BlackClock "0:00:07"]
[Board "189"]

1. e4 {[%clk 0:03:00]}  c5 {[%clk 0:02:51]} 2. Nf3 {[%clk 0:03:00]}  Nc6 {[%clk 0:02:50]} 3. c3 {[%clk 0:02:59]}  Nf6 {[%clk 0:02:49]} 4. e5 {[%clk 0:02:59]}  Nd5 {[%clk 0:02:49]} 5. d4 {[%clk 0:02:59]}  cxd4 {[%clk 0:02:48]} 6. cxd4 {[%clk 0:02:57]}  d6 {[%clk 0:02:48]} 7. Bc4 {[%clk 0:02:56]}  Nb6 {[%clk 0:02:48]} 8. Bb3 {[%clk 0:02:52]}  e6 {[%clk 0:02:47]} 9. Bg5 {[%clk 0:02:46]}  Be7 {[%clk 0:02:44]} 10. Bxe7 {[%clk 0:02:44]}  Qxe7 {[%clk 0:02:43]} 11. O-O {[%clk 0:02:44]}  O-O {[%clk 0:02:42]} 12. Nc3 {[%clk 0:02:43]}  a6 {[%clk 0:02:39]} 13. Ne4 {[%clk 0:02:39]}  dxe5 {[%clk 0:02:31]} 14. dxe5 {[%clk 0:02:40]}  Rd8 {[%clk 0:02:30]} 15. Qe2 {[%clk 0:02:40]}  Nd5 {[%clk 0:02:18]} 16. Rad1 {[%clk 0:02:24]}  Bd7 {[%clk 0:02:16]} 17. Bxd5 {[%clk 0:02:02]}  exd5 {[%clk 0:02:16]} 18. Rxd5 {[%clk 0:02:03]}  Bg4 {[%clk 0:02:14]} 19. Rxd8+ {[%clk 0:01:47]}  Rxd8 {[%clk 0:02:15]} 20. Ned2 {[%clk 0:01:37]}  Re8 {[%clk 0:02:03]} 21. Re1 {[%clk 0:01:34]}  h6 {[%clk 0:02:01]} 22. h3 {[%clk 0:01:33]}  Bh5 {[%clk 0:01:59]} 23. Qe3 {[%clk 0:01:32]}  Qb4 {[%clk 0:01:55]} 24. b3 {[%clk 0:01:29]}  Qa3 {[%clk 0:01:46]} 25. Nc4 {[%clk 0:01:15]}  Qxa2 {[%clk 0:01:41]} 26. Nd6 {[%clk 0:01:15]}  Re7 {[%clk 0:01:35]} 27. g4 {[%clk 0:01:15]}  Bg6 {[%clk 0:01:34]} 28. Qc3 {[%clk 0:01:13]}  Qc2 {[%clk 0:01:22]} 29. Qxc2 {[%clk 0:00:55]}  Bxc2 {[%clk 0:01:23]} 30. Re3 {[%clk 0:00:56]}  Bd1 {[%clk 0:01:00]} 31. Nf5 {[%clk 0:00:45]}  Re6 {[%clk 0:00:55]} 32. N5d4 {[%clk 0:00:37]}  Nxd4 {[%clk 0:00:53]} 33. Nxd4 {[%clk 0:00:38]}  Rb6 {[%clk 0:00:51]} 34. f4 {[%clk 0:00:36]}  Rb4 {[%clk 0:00:48]} 35. Rd3 {[%clk 0:00:36]}  Bxb3 {[%clk 0:00:39]} 36. Nxb3 {[%clk 0:00:34]}  Rxf4 {[%clk 0:00:39]} 37. Nc5 {[%clk 0:00:32]}  Rb4 {[%clk 0:00:36]} 38. Rd8+ {[%clk 0:00:32]}  Kh7 {[%clk 0:00:36]} 39. Rd7 {[%clk 0:00:33]}  Rb5 {[%clk 0:00:26]} 40. Nd3 {[%clk 0:00:31]}  Kg6 {[%clk 0:00:22]} 41. h4 {[%clk 0:00:26]}  a5 {[%clk 0:00:13]} 42. Nf4+ {[%clk 0:00:17]}  Kh7 {[%clk 0:00:13]} 43. e6 {[%clk 0:00:18]}  fxe6 {[%clk 0:00:13]} 44. Nxe6 {[%clk 0:00:17]}  a4 {[%clk 0:00:12]} 45. Rxg7+ {[%clk 0:00:17]}  Kh8 {[%clk 0:00:12]} 46. Rd7 {[%clk 0:00:17]}  a3 {[%clk 0:00:11]} 47. Rd8+ {[%clk 0:00:17]}  Kh7 {[%clk 0:00:11]} 48. Ra8 {[%clk 0:00:18]}  Rb3 {[%clk 0:00:11]} 49. Kf2 {[%clk 0:00:18]}  b5 {[%clk 0:00:11]} 50. Nd4 {[%clk 0:00:17]}  Rb2+ {[%clk 0:00:10]} 51. Ke3 {[%clk 0:00:18]}  b4 {[%clk 0:00:10]} 52. g5 {[%clk 0:00:17]}  hxg5 {[%clk 0:00:10]} 53. hxg5 {[%clk 0:00:18]}  Kg6 {[%clk 0:00:10]} 54. Kf4 {[%clk 0:00:18]}  a2 {[%clk 0:00:10]} 55. Ra6+ {[%clk 0:00:18]}  Kf7 {[%clk 0:00:09]} 56. g6+ {[%clk 0:00:18]}  Kg8 {[%clk 0:00:09]} 57. Nf5 {[%clk 0:00:18]}  b3 {[%clk 0:00:07]} 58. Ra8# {[%clk 0:00:18]} 1-0


[Site "https://www.chess.com"]

[Event "Titled Tuesday Blitz November 07 Early 2023"]
[White "Idnani, Taran"]
[Black "Petersson, Kjell"]
[WhiteFideId "2071002"]
[BlackFideId "1705148"]
[WhiteElo "2405"]
[BlackElo "2130"]
[Result "1/2-1/2"]
[Round "7"]
[TimeControl "180+1"]
[Date "2023.11.07"]
[WhiteClock "0:01:31"]
[BlackClock "0:00:08"]
[Board "190"]

1. e4 {[%clk 0:02:57]}  c5 {[%clk 0:03:00]} 2. Nf3 {[%clk 0:02:57]}  d6 {[%clk 0:03:00]} 3. d4 {[%clk 0:02:57]}  cxd4 {[%clk 0:03:00]} 4. Qxd4 {[%clk 0:02:58]}  Nc6 {[%clk 0:02:56]} 5. Bb5 {[%clk 0:02:58]}  Bd7 {[%clk 0:02:56]} 6. Bxc6 {[%clk 0:02:58]}  Bxc6 {[%clk 0:02:56]} 7. c4 {[%clk 0:02:59]}  f5 {[%clk 0:02:51]} 8. exf5 {[%clk 0:02:55]}  Qa5+ {[%clk 0:02:51]} 9. Nc3 {[%clk 0:02:54]}  Qxf5 {[%clk 0:02:51]} 10. Qf4 {[%clk 0:02:50]}  Nh6 {[%clk 0:02:43]} 11. O-O {[%clk 0:02:43]}  Bxf3 {[%clk 0:02:34]} 12. Qxf3 {[%clk 0:02:38]}  Qxf3 {[%clk 0:02:30]} 13. gxf3 {[%clk 0:02:39]}  Nf5 {[%clk 0:02:27]} 14. Nd5 {[%clk 0:02:36]}  Kd7 {[%clk 0:02:18]} 15. b3 {[%clk 0:02:36]}  e6 {[%clk 0:02:17]} 16. Ne3 {[%clk 0:02:35]}  Nh4 {[%clk 0:02:07]} 17. Rd1 {[%clk 0:02:32]}  Nxf3+ {[%clk 0:01:59]} 18. Kg2 {[%clk 0:02:31]}  Nh4+ {[%clk 0:01:59]} 19. Kf1 {[%clk 0:02:29]}  b6 {[%clk 0:01:55]} 20. Bb2 {[%clk 0:02:26]}  Rg8 {[%clk 0:01:50]} 21. Be5 {[%clk 0:02:25]}  Rc8 {[%clk 0:01:46]} 22. Ke2 {[%clk 0:02:24]}  Be7 {[%clk 0:01:38]} 23. Rd2 {[%clk 0:02:20]}  Kc7 {[%clk 0:01:29]} 24. Bg3 {[%clk 0:02:19]}  Rcd8 {[%clk 0:01:18]} 25. Rad1 {[%clk 0:02:16]}  Nf5 {[%clk 0:01:14]} 26. Nc2 {[%clk 0:02:14]}  Nxg3+ {[%clk 0:01:11]} 27. hxg3 {[%clk 0:02:13]}  Rgf8 {[%clk 0:01:09]} 28. Nd4 {[%clk 0:02:12]}  Rf6 {[%clk 0:01:09]} 29. Nb5+ {[%clk 0:02:08]}  Kc6 {[%clk 0:00:59]} 30. Nxa7+ {[%clk 0:02:07]}  Kb7 {[%clk 0:00:59]} 31. Nb5 {[%clk 0:02:07]}  e5 {[%clk 0:00:59]} 32. Nc3 {[%clk 0:02:05]}  Rdf8 {[%clk 0:00:57]} 33. Ne4 {[%clk 0:02:03]}  Rf3 {[%clk 0:00:51]} 34. Rd3 {[%clk 0:02:00]}  Rxd3 {[%clk 0:00:49]} 35. Rxd3 {[%clk 0:01:59]}  Kc6 {[%clk 0:00:49]} 36. a4 {[%clk 0:01:58]}  h5 {[%clk 0:00:47]} 37. Nc3 {[%clk 0:01:58]}  h4 {[%clk 0:00:42]} 38. Nd5 {[%clk 0:01:55]}  Bd8 {[%clk 0:00:43]} 39. gxh4 {[%clk 0:01:47]}  Bxh4 {[%clk 0:00:42]} 40. Rf3 {[%clk 0:01:48]}  Bf6 {[%clk 0:00:24]} 41. Kd3 {[%clk 0:01:45]}  Rf7 {[%clk 0:00:19]} 42. Ke4 {[%clk 0:01:44]}  Rf8 {[%clk 0:00:18]} 43. Rd3 {[%clk 0:01:39]}  Bd8 {[%clk 0:00:16]} 44. Rf3 {[%clk 0:01:37]}  Bf6 {[%clk 0:00:15]} 45. Ne3 {[%clk 0:01:38]}  Kc5 {[%clk 0:00:11]} 46. Nd5 {[%clk 0:01:31]}  Kc6 {[%clk 0:00:08]} 1/2-1/2


[Site "https://www.chess.com"]

[Event "Titled Tuesday Blitz November 07 Early 2023"]
[White "Fernandez Hernandez, Gerardo"]
[Black "Todev, Simeon"]
[WhiteFideId "2207400"]
[BlackFideId "2925133"]
[WhiteElo "2114"]
[BlackElo "2353"]
[Result "1/2-1/2"]
[Round "7"]
[TimeControl "180+1"]
[Date "2023.11.07"]
[WhiteClock "0:00:05"]
[BlackClock "0:00:56"]
[Board "191"]

1. e4 {[%clk 0:03:00]}  c5 {[%clk 0:02:56]} 2. d3 {[%clk 0:03:00]}  Nc6 {[%clk 0:02:56]} 3. g3 {[%clk 0:03:01]}  e5 {[%clk 0:02:57]} 4. Bg2 {[%clk 0:03:01]}  g6 {[%clk 0:02:58]} 5. f4 {[%clk 0:03:02]}  Bg7 {[%clk 0:02:59]} 6. Nc3 {[%clk 0:03:00]}  Nge7 {[%clk 0:03:00]} 7. Nf3 {[%clk 0:02:58]}  O-O {[%clk 0:03:01]} 8. O-O {[%clk 0:02:58]}  d6 {[%clk 0:02:59]} 9. f5 {[%clk 0:02:58]}  gxf5 {[%clk 0:02:58]} 10. Nh4 {[%clk 0:02:58]}  Nd4 {[%clk 0:02:55]} 11. a4 {[%clk 0:02:24]}  fxe4 {[%clk 0:02:54]} 12. dxe4 {[%clk 0:02:23]}  f5 {[%clk 0:02:45]} 13. Bg5 {[%clk 0:02:12]}  fxe4 {[%clk 0:02:11]} 14. Nd5 {[%clk 0:02:02]}  Ndc6 {[%clk 0:01:56]} 15. Bxe4 {[%clk 0:01:56]}  Bh3 {[%clk 0:01:47]} 16. Rxf8+ {[%clk 0:01:24]}  Qxf8 {[%clk 0:01:42]} 17. Qh5 {[%clk 0:01:19]}  h6 {[%clk 0:01:36]} 18. Nxe7+ {[%clk 0:00:40]}  Nxe7 {[%clk 0:01:34]} 19. Bxe7 {[%clk 0:00:39]}  Qxe7 {[%clk 0:01:32]} 20. Nf5 {[%clk 0:00:36]}  Bxf5 {[%clk 0:01:27]} 21. Qxf5 {[%clk 0:00:37]}  Rf8 {[%clk 0:01:09]} 22. Qh7+ {[%clk 0:00:34]}  Kf7 {[%clk 0:01:02]} 23. Qg6+ {[%clk 0:00:25]}  Kg8 {[%clk 0:01:00]} 24. Qh7+ {[%clk 0:00:13]}  Kf7 {[%clk 0:00:59]} 25. Qg6+ {[%clk 0:00:08]}  Kg8 {[%clk 0:00:56]} 26. Qh7+ {[%clk 0:00:05]} 1/2-1/2


[Site "https://www.chess.com"]

[Event "Titled Tuesday Blitz November 07 Early 2023"]
[White "rikchessmx"]
[Black "abelmat"]
[WhiteElo "2343"]
[BlackElo "1966"]
[Result "1-0"]
[Round "7"]
[TimeControl "180+1"]
[Date "2023.11.07"]
[WhiteClock "0:01:25"]
[BlackClock "0:00:00"]
[Board "192"]

1. e4 {[%clk 0:02:56]}  e6 {[%clk 0:02:59]} 2. d4 {[%clk 0:02:47]}  d5 {[%clk 0:03:00]} 3. Nc3 {[%clk 0:02:47]}  dxe4 {[%clk 0:02:59]} 4. Nxe4 {[%clk 0:02:46]}  Nd7 {[%clk 0:03:00]} 5. Nf3 {[%clk 0:02:46]}  Ngf6 {[%clk 0:03:01]} 6. Neg5 {[%clk 0:02:46]}  Be7 {[%clk 0:02:59]} 7. Bd3 {[%clk 0:02:45]}  O-O {[%clk 0:02:58]} 8. Qe2 {[%clk 0:02:44]}  Bb4+ {[%clk 0:02:51]} 9. c3 {[%clk 0:02:44]}  Bd6 {[%clk 0:02:51]} 10. Ne5 {[%clk 0:02:39]}  b6 {[%clk 0:02:28]} 11. Qf3 {[%clk 0:02:22]}  Bxe5 {[%clk 0:01:50]} 12. Qxa8 {[%clk 0:02:17]}  Qe7 {[%clk 0:01:17]} 13. Qf3 {[%clk 0:02:02]}  Bd6 {[%clk 0:00:56]} 14. Ne4 {[%clk 0:01:59]}  Nxe4 {[%clk 0:00:55]} 15. Qxe4 {[%clk 0:02:00]}  f5 {[%clk 0:00:54]} 16. Qe2 {[%clk 0:01:57]}  Bb7 {[%clk 0:00:53]} 17. O-O {[%clk 0:01:57]}  Nf6 {[%clk 0:00:43]} 18. Bg5 {[%clk 0:01:53]}  h6 {[%clk 0:00:28]} 19. Bxf6 {[%clk 0:01:52]}  Qxf6 {[%clk 0:00:29]} 20. f4 {[%clk 0:01:50]}  g5 {[%clk 0:00:20]} 21. Bc4 {[%clk 0:01:49]}  Re8 {[%clk 0:00:18]} 22. fxg5 {[%clk 0:01:41]}  hxg5 {[%clk 0:00:19]} 23. Rae1 {[%clk 0:01:39]}  Qh6 {[%clk 0:00:00]} 24. h3 {[%clk 0:01:25]} 1-0


[Site "https://www.chess.com"]